Cogmind - Beta 15 @@@ ROGUE MODE // 2025.07.24 @ 15:08:33 Player: Waste Result: Destroyed by Y-45 Defender with Heavy Assault Rifle Performance ------------- Evolutions (0) 0 Regions Visited (3) 600 Robots Destroyed (12) 60 Value Destroyed (381) 381 Prototype IDs (0) 0 Alien Tech Used (0) 0 Bonus (0) 0 TOTAL SCORE: 1041 Bonus ------- None Cogmind --------- Core Integrity 0/250 Matter 119/300 Energy 100/100 System Corruption 0% Temperature Cool (27) Movement Treading (160) Location -9/Recycling Parts ------- > --- POWER (1) -------- (None) > --- PROPULSION (2) --- Light Treads Light Treads > --- UTILITY (2) ------ Small Storage Unit Targeting Computer > --- WEAPON (2) ------- Subdweller Machine Gun Subdweller Shrapnel Launcher > --- INVENTORY (8) ---- Wheel High-capacity Matter Pod (200) Scrap Shield Heavy Riot Gun Subdweller Machine Gun Battle Cannon Grenade Launcher Peak State ------------ > --- POWER ------------ Ion Engine > --- PROPULSION ------- Aluminum Leg Aluminum Leg > --- UTILITY ---------- Small Storage Unit Targeting Computer > --- WEAPON ----------- Subdweller Machine Gun Battle Cannon > --- INVENTORY -------- Light Treads Light Treads Wheel High-capacity Matter Pod Scrap Shield EM Pulse Gun Grenade Launcher [Rating: 10] Favorites ----------- Power Ion Engine Engine Ion Engine Propulsion Light Treads Treads Light Treads Leg Aluminum Leg Utility Small Storage Unit Storage Small Storage Unit Processor Targeting Computer Weapon Subdweller Machine Gun Ballistic Gun Subdweller Machine Gun Ballistic Cannon Battle Cannon Launcher Grenade Launcher Build | -11 -10 -10 -9 ------- Run | Yrd Mat Sub Rec Slots Evolved . | . . . . Power . | . . . . Propulsion . | . . . . Utility . | . . . . Weapon . | . . . . Parts Attached 12 | . 1 11 . Power 1 | . . 1 . Engine 1 | . . 1 . Core . | . . . . Reactor . | . . . . Propulsion 2 | . . 2 . Treads 2 | . . 2 . Leg . | . . . . Wheel . | . . . . Hover . | . . . . Flight . | . . . . Utility 1 | . 1 . . Device . | . . . . Storage . | . . . . Processor 1 | . 1 . . Hackware . | . . . . Protection . | . . . . Artifact . | . . . . Weapon 8 | . . 8 . Energy Gun . | . . . . Energy Cannon . | . . . . Ballistic Gun 5 | . . 5 . Ballistic Cannon 1 | . . 1 . Launcher 2 | . . 2 . Special Weapon . | . . . . Impact Weapon . | . . . . Slashing Weapon . | . . . . Piercing Weapon . | . . . . Special Melee Weapon . | . . . . Unidentified Prototypes . | . . . . Parts Lost 3 | . . 2 1 Power 1 | . . . 1 Propulsion 2 | . . 2 . Utility . | . . . . Weapon . | . . . . Highest Loss Streak 2 | . . 2 1 To Critical Strikes . | . . . . Average Backups 7 | . 7 7 7 Power . | . 1 . . Propulsion 2 | . 4 1 1 Utility 1 | . . 1 2 Weapon 3 | . 1 3 4 Tool/Special . | . . . . Unused Backups 6 | . . 3 3 Power . | . . . . Propulsion . | . . . . Utility 2 | . . . 2 Weapon 4 | . . 3 1 Tool/Special . | . . . . Average Slot Usage (%) 99 | . 98 99 100 Engine 14 | . 14 14 14 Treads 16 | . . 18 28 Leg 11 | . 28 9 . Storage 14 | . 14 14 14 Processor 13 | . 12 14 14 Ballistic Gun 16 | . 28 15 14 Ballistic Cannon 10 | . . 10 . Launcher 1 | . . 1 14 Peak Build Rating 10 | . 7 10 10 Average Rating 9 | . 6 9 9 On Entrance 7 | 6 6 7 10 Naked Turns . | . . . . Heaviest Build 22 | 10 10 22 22 Greatest Support 40 | 20 20 40 40 Greatest Overweight (x) . | . . . . Average Overweight (x) . | . . . . Largest Inventory Capacity 8 | . 8 8 8 Average Capacity 8 | . 8 8 8 Most Carried 8 | . 8 8 8 Average Carried 7 | . 7 7 8 Final Capacity 8 | 8 8 8 8 Final Carried 8 | 6 8 8 8 Class Distribution -------------------- 100% | Mutant Dominant Class ---------------- Mutant | -10/Materials Mutant | -10/Subcaves Mutant | -9/Recycling Resources | -11 -10 -10 -9 ----------- Run | Yrd Mat Sub Rec Matter Collected 724 | 200 123 401 . Remotely . | . . . . Salvage Created 367 | . . 367 . Parts 34 | . . 34 . Haulers Intercepted . | . . . . Recyclers Shooed . | . . . . Parts Field Recycled . | . . . . Retrieved Matter . | . . . . Parts Self-Destructed 16 | . . 16 . Prevented . | . . . . Kills | -11 -10 -10 -9 ------- Run | Yrd Mat Sub Rec Combat Hostiles Destroyed 11 | . . 11 . Guns 8 | . . 8 . Cannons 2 | . . 2 . AOE 1 | . . 1 . Classes Destroyed 4 | . . 4 . Turret 1 | . . 1 . Swarmer 3 | . . 3 . Grunt 2 | . . 2 . Subdweller 6 | . . 6 . Best Kill Streak 3 | . . 3 . Combat Bots Only 3 | . . 3 . Max Kills in Single Turn 1 | . . 1 . Gunslinging . | . . . . Exploded 1 | . . 1 . Melee . | . . . . Uniques/NPCs Destroyed . | . . . . Combat | -11 -10 -10 -9 -------- Run | Yrd Mat Sub Rec Hostile Shots Fired 97 | . . 93 4 Missed 26 | . . 26 . Hits 71 | . . 67 4 Projectile 71 | . . 67 4 AOE 4 | . . 4 . Critical Strikes 3 | . . 2 1 Damage Taken 999 | . . 942 57 Core 261 | . . 234 27 Absorbed by Shields . | . . . . Core Remaining (%) 100 | 100 . . . Volleys Fired 53 | . . 53 . Largest 2 | . . 2 . Hottest 63 | . . 63 . Shots Fired 85 | . . 85 . Gun 45 | . . 45 . Cannon 22 | . . 22 . Launcher 18 | . . 18 . Special . | . . . . Kinetic 69 | . . 69 . Thermal . | . . . . Explosive 16 | . . 16 . Electromagnetic . | . . . . Robot Hit Streak 30 | . . 30 . Robot Miss Streak 3 | . . 3 . Penetration Max . | . . . . Secondary Targets 1 | . . 1 . Max Gunslinging Chain 1 | . . 1 . Shots Hit Robots 46 | . . 46 . Core Hits 30 | . . 30 . Critical Kills . | . . . . Critical Parts Destroyed . | . . . . Critical Strikes 1 | . . 1 . Blast 1 | . . 1 . Melee Attacks . | . . . . Impact . | . . . . Slashing . | . . . . Piercing . | . . . . Sneak Attacks . | . . . . Combat Hostiles . | . . . . Follow-up Attacks . | . . . . Damage Inflicted 965 | . . 965 . Guns 441 | . . 441 . Cannons 285 | . . 285 . Explosions 239 | . . 239 . Melee . | . . . . Ramming . | . . . . Kinetic 850 | . . 850 . Thermal . | . . . . Explosive 115 | . . 115 . Electromagnetic . | . . . . Impact . | . . . . Slashing . | . . . . Piercing . | . . . . Highest Corruption . | . . . . Average Corruption . | . . . . Corruption Purged . | . . . . Corruption Blocked . | . . . . Overload Shots . | . . . . Overflow Damage . | . . . . Projectiles . | . . . . Explosions . | . . . . Melee . | . . . . Knockbacks 3 | . . 3 . Impact . | . . . . Kinetic 3 | . . 3 . Secondary . | . . . . Self-Inflicted Damage 54 | . . 54 . Shots 4 | . . 4 . Rammed . | . . . . Targets Rammed . | . . . . Kicked . | . . . . Crushed . | . . . . Highest Temperature . | . . . . Average Temperature . | . . . . Received Heat Transfer 183 | . . 147 36 Siege Activations . | . . . . Martial Activations . | . . . . Shielding Activations . | . . . . Robots Disrupted . | . . . . Combat Hostiles . | . . . . Robots Corrupted . | . . . . Combat Hostiles . | . . . . Parts Fried . | . . . . Impact Corruptions . | . . . . Robots Melted . | . . . . Combat Hostiles . | . . . . Parts Melted 1 | . . 1 . Heat Transferred . | . . . . Parts Sabotaged . | . . . . Parts Stolen . | . . . . Parts Stripped . | . . . . Power Chain Reactions . | . . . . Alert | -11 -10 -10 -9 ------- Run | Yrd Mat Sub Rec Maximum Alert Level . | . . . . Low Security (%) 100 | . 100 . 100 Level 1 . | . . . . Level 2 . | . . . . Level 3 . | . . . . Level 4 . | . . . . Level 5 . | . . . . High Security . | . . . . Max Security . | . . . . Peak Influence 114 | . . . 114 Initial 114 | . . . 114 Average 4 | . . . 109 Influence Increases 295 | . . 295 . Destroy 0b10 Robot/C 120 | . . 120 . Destroy Leader 10 | . . 10 . Lose Combat Pursuer 165 | . . 165 . Influence Decreases 191 | . . 57 134 Entered New Map 124 | . . . 124 Time Decay 57 | . . 57 . Lost Part 10 | . . . 10 Squads Dispatched . | . . . . Investigation . | . . . . Extermination . | . . . . Reinforcement . | . . . . Assault . | . . . . Garrison . | . . . . Intercept . | . . . . Searches Triggered . | . . . . Construction Impeded . | . . . . Haulers Reinforced . | . . . . Active Scanning Responses . | . . . . Cargo Convoy Interrupts . | . . . . Stealth | -11 -10 -10 -9 --------- Run | Yrd Mat Sub Rec Distress Signals . | . . . . Communications Jammed . | . . . . Distress Signals . | . . . . Times Spotted 23 | . . 22 1 Peak Tracking Total 4 | . 1 4 2 Tactical Retreats 8 | . . 8 . Traps | -11 -10 -10 -9 ------- Run | Yrd Mat Sub Rec Traps Triggered . | . . . . Indirectly . | . . . . Trap Hack Attempts . | . . . . Triggered . | . . . . Disarmed . | . . . . Reprogrammed . | . . . . Reused . | . . . . Traps Extracted . | . . . . Installed . | . . . . Triggered . | . . . . Machines | -11 -10 -10 -9 ---------- Run | Yrd Mat Sub Rec Machines Disabled 4 | . . 4 . Max in Single Turn 1 | . . 1 . Machines Repaired . | . . . . Machines Dismantled . | . . . . Machines Sabotaged . | . . . . Overloaded Fab Kills . | . . . . Hacking | -11 -10 -10 -9 --------- Run | Yrd Mat Sub Rec Machines Accessed 1 | . 1 . . Terminals 1 | . 1 . . Fabricators . | . . . . Repair Stations . | . . . . Recycling Units . | . . . . Scanalyzers . | . . . . Garrison Access . | . . . . Total Hacks 5 | . 5 . . Successful 1 | . 1 . . Failed 4 | . 4 . . Catastrophic . | . . . . Database Lockouts . | . . . . Manual 5 | . 5 . . Terminals 5 | . 5 . . Fabricators . | . . . . Repair Stations . | . . . . Recycling Units . | . . . . Scanalyzers . | . . . . Garrison Access . | . . . . Terminal Hacks 1 | . 1 . . Robot Analysis 1 | . 1 . . Fabricator Hacks . | . . . . Repair Station Hacks . | . . . . Recycling Unit Hacks . | . . . . Scanalyzer . | . . . . Garrison Access Hacks . | . . . . Unauthorized Hacks . | . . . . Terminals . | . . . . Fabricators . | . . . . Repair Stations . | . . . . Recycling Units . | . . . . Scanalyzers . | . . . . Garrison Access . | . . . . Data Cores Recovered . | . . . . Used . | . . . . Hacking Detections 1 | . 1 . . Full Trace Events . | . . . . Feedback Events . | . . . . Feedback Blocked . | . . . . Robot Schematics Acquired . | . . . . Robots Built . | . . . . Authchips . | . . . . Time . | . . . . Total Robot Build Rating . | . . . . Part Schematics Acquired . | . . . . Parts Built . | . . . . Authchips . | . . . . Time . | . . . . Total Part Build Rating . | . . . . Parts Repaired . | . . . . Time . | . . . . Parts Recycled . | . . . . Recycled Matter . | . . . . Retrieved Matter . | . . . . Retrieved Components . | . . . . Parts Scanalyzed . | . . . . Part Schematics Acquired . | . . . . Parts Damaged . | . . . . Bothacking | -11 -10 -10 -9 ------------ Run | Yrd Mat Sub Rec Used RIF Installer . | . . . . Robots Hacked . | . . . . Non-combat . | . . . . Combat . | . . . . Robot Hacks Applied . | . . . . Relay Couplers Released . | . . . . Fabnet Peak Effective % . | . . . . Robots Rewired . | . . . . Allies Hacked . | . . . . Hacks Repelled . | . . . . Allies | -11 -10 -10 -9 -------- Run | Yrd Mat Sub Rec Total Allies . | . . . . Largest Group . | . . . . Highest-Rated Group . | . . . . Highest-Rated Ally . | . . . . Total Orders . | . . . . Ally Attacks . | . . . . Total Damage . | . . . . Kills . | . . . . Allies Corrupted . | . . . . Allies Melted . | . . . . Intel | -11 -10 -10 -9 ------- Run | Yrd Mat Sub Rec Active Infowar (turns) . | . . . . Robot Analysis Total 1 | . 1 . . Derelict Logs Recovered . | . . . . Drone Launches . | . . . . Drone Recoveries . | . . . . Exploration | -11 -10 -10 -9 ------------- Run | Yrd Mat Sub Rec Turns Passed 1977 | . 155 1816 6 Spaces Moved 1168 | 1 45 1118 4 Core . | . . . . Treads 686 | . . 682 4 Legs 482 | 1 45 436 . Wheels . | . . . . Hover . | . . . . Flight . | . . . . Fastest Speed 120 | 120 120 120 160 Average Speed 143 | 120 120 144 160 Slowest Speed 160 | 120 120 160 160 Overloaded Moves . | . . . . Propulsion Burnouts . | . . . . Robots Hopped . | . . . . Potential Cave-ins . | . . . . Cave-ins Triggered . | . . . . Exploration Rate (%) 15 | 2 8 51 2 Regions Visited 3 Branch Regions 2 Pre-discovered Areas . | . . . . Known Exits Taken . | . . . . Unknown Exits Taken 3 | 1 1 1 . Scrap Searched 1 | . . 1 . Spaces Dug 7 | . . 7 . Terrain Destroyed 108 | . . 108 . Melee . | . . . . Projectile 1 | . . 1 . AOE 107 | . . 107 . Terrain Rammed . | . . . . Walls Destroyed . | . . . . Machines Disabled . | . . . . Actions | -11 -10 -10 -9 --------- Run | Yrd Mat Sub Rec Total 1389 | . 145 1240 4 Wait 140 | . 98 42 . Move 1165 | . 44 1117 4 Hop . | . . . . Pick Up 8 | . 2 6 . Fast Attach 1 | . 1 . . Attach 3 | . . 3 . Detach . | . . . . Swap 10 | . . 10 . Drop 9 | . . 9 . Fire 53 | . . 53 . Melee . | . . . . Ram . | . . . . Kick . | . . . . Crush . | . . . . Escape Stasis . | . . . . Rewire . | . . . . Trap . | . . . . Miscellaneous . | . . . . Route ------- -11/Scrapyard -10/Materials -10/Subcaves (discovered 2 exits: [*Mat] / [*Rec]) -9/Recycling History --------- Turn | Location | Event 1 | -11/Scrapyard | Discovered new exit (range 0) 1 | -11/Scrapyard | Entered Materials 138 | -10/Materials | Discovered new exit (range 7) 156 | -10/Materials | Entered Subcaves 157 | -10/Subcaves | Approached by a straggling Scientist 173 | -10/Subcaves | Shifting Twisted Machinery released Flamer 302 | -10/Subcaves | Build established: Mutant 372 | -10/Subcaves | Ambushed by Subdweller buried in earth 419 | -10/Subcaves | Shifting Twisted Machinery released Barrage Gun 451 | -10/Subcaves | A swath of the cavern ceiling suddenly collapsed 454 | -10/Subcaves | Disturbed a concealed Subdweller 579 | -10/Subcaves | Shifting Twisted Machinery released Battle Cannon 616 | -10/Subcaves | Shifting Twisted Machinery released Hvy. Riot Gun 768 | -10/Subcaves | Core integrity fell below 50% 769 | -10/Subcaves | Ambushed by Subdweller buried in earth 1563 | -10/Subcaves | Shifting Twisted Machinery released Sub. Machine Gun 1565 | -10/Subcaves | Discovered new exit (range 8) 1608 | -10/Subcaves | Shifting Twisted Machinery released Sub. Shrapnel Launcher 1831 | -10/Subcaves | Ambushed by Subdweller buried in earth 1832 | -10/Subcaves | Core integrity fell below 20% 1903 | -10/Subcaves | Discovered new exit (range 8) 1972 | -10/Subcaves | Entered Recycling 1978 | -9/Recycling | Destroyed by Y-45 Defender with Heavy Assault Rifle Last Messages --------------- 01869_ Sub. Machine Gun shoots sparks and powers down. 01885_ The unstable cave ceiling collapses. 01885_ Disposable Heat Sink crushed. 01892_ The unstable cave ceiling collapses. 01892_ Scrap Shield Fragment crushed. 01893_ The unstable cave ceiling collapses. 01903_ EXIT=FOUND 01905_ The unstable cave ceiling collapses. 01915_ Machine disabled. 01918_ The unstable cave ceiling collapses. 01931_ Machine disabled. 01937_ Autobeam Turret destroyed. 01947_ The unstable cave ceiling collapses. 01947_ Autobeam Turret destroyed. 01964_ The unstable cave ceiling collapses. LOCATION=UNKNOWN GOAL=ESCAPE 01973_ Y-45 Defender springs to life. 01975_ Ion Engine destroyed. 01978_ Critical hit (Burn: +37). Map ----- +----------------------------------------------------+ | ????????????????????????????????????????????????? | | ????????????????????????????????????????????????? | | ????????????????????????????????????????????????? | | ????????????????????????????????????????????????? | | ????????????????????????????????????????????????? | | ????????????????????????????????????????????????? | | ????????????????????????????????????????????????? | | ????????????????????????????????????????????????? | | ????????????????????????????????????????????????? | | ????????????????????????????????????????????????? | | ????????????????????????????????????????????????? | | ????????????????????????????????????????????????? | | ????????????????????????????????????????????????? | | ????????????????????????????????????????????????? | | ????????????????????????????????????????????????? | | ????????????????????????????????????????????????? | | ????????????????????????????????????????????????? | | ????????????????????????????????????????????????? | | ????????????????????????????????????????????????? | | ????????????????????????????????????????????????? | | ????????????????????????????????????????????????? | | ????????????????????????????????????????????????? | | ????????????????????????????????????????????????? | | ??????????????????????#####?????????????????????? | | ??????????????????????# #?????????????????????? | | ??????????????????????# @#?????????????????????? | | ??????????????????????# #?????????????????????? | | ??????????????????????# #?????????????????????? | | ??????????????????????# #?????????????????????? | | ??????????????????????# ?????????????????????? | | ??????????????????????#Y #?????????????????????? | | ?????????????????????? #?????????????????????? | | ?????????????????????## #?????????????????????? | | ??????????????????????# #?????????????????????? | | ?????????????????????? ?????????????????????? | | ?????????????????????? ?????????????????????? | | ????????????????????? ?????????????????????? | | ????????????????????? ?????????????????????? | | ?????????????????????# ?????????????????????? | | ?????????????????????#### #?????????????????????? | | ????????????????????????? ??????????????????????? | | ????????????????????????? ??????????????????????? | | ????????????????????????? ??????????????????????? | | ????????????????????????????????????????????????? | | ????????????????????????????????????????????????? | | ????????????????????????????????????????????????? | | ????????????????????????????????????????????????? | | ????????????????????????????????????????????????? | | ????????????????????????????????????????????????? | | ????????????????????????????????????????????????? | +----------------------------------------------------+ Best States ------------- Heat Dissipation 25 Energy Generation 10 Energy Capacity 250 Matter Stores 300 Matter Capacity 300 Sight Range 16 Terrain Scan Density 10 Evasion (%) 55 Targeting Accuracy 5 Recoil Reduction 2 Item Schematics ----------------- None Robot Schematics ------------------ None Fabricated ------------ Nothing Repaired ---------- Nothing Alien Tech Used ----------------- None Achievements -------------- None Challenges ------------ None Game ------ Seed TimingGhostThermoblaster Manual? 0 Play Time 00:07:45 Cumulative 399.8 hours Start 2025.07.24 @ 15:00:44 End 2025.07.24 @ 15:08:33 Sessions 1 Manual Loads 0 Difficulty Rogue Special Mode None Game No. 498 Rogue 498 Adventurer 0 Explorer 0 Win Type - Total 31 Types 15/1/9/1/1/1/0/1/1/1 Lore% 87 Gallery% 80 Achievement% 77 Wizard Run 0 Options --------- Layout 0 ASCII 0 Keyboard 0 Movement Numpad Keybinds 0 Fullscreen 1 Font 18/SmallcapsGlow Map View 76x50 Zoom Use 0% Tactical HUD 1 Map Filters NONE Filters NONE Steam 1 RUN: 042e79f4-9fba-4ff2-a531-8f6461915be4